{"text_format":"3","workbook":"xlsx","n_sheets":4,"sheets":["Ορόσημα","Χάρτης","Πληροφορίες","Δεδομένα γραφήματος"],"not_rendered":{"charts":1,"defined_names":2},"read":"whole","date_system":"1900"}

{"sheet":"Ορόσημα","index":0,"n_rows":27,"n_cols":5,"rows_kept":27}
["Δημιουργήστε έναν Χάρτης με την εισαγωγή σημαντικών ορόσημων και δραστηριοτήτων σε αυτό το φύλλο εργασίας.\nΟ τίτλος αυτού του φύλλου εργασίας είναι στο κελί C1. \nΠληροφορίες σχετικά με το πώς μπορείτε να χρησιμοποιήσετε αυτό το φύλλο εργασίας, συμπεριλαμβανομένων οδηγιών για προγράμματα ανάγνωσης οθόνης, υπάρχουν στο φύλλο εργασίας \"Πληροφορίες\".\nΣυνεχίστε την περιήγηση προς τα κάτω στη στήλη Α για περαιτέρω οδηγίες.",null," οροσήμων"]
["Οι επικεφαλίδες του πίνακα είναι στα κελιά C2 έως E2. Χρησιμοποιήστε τις επιλογές \"Ταξινόμηση και φιλτράρισμα\" για να ταξινομήσετε ή να βρείτε συγκεκριμένες εγγραφές.\nΕισαγάγετε ορόσημα με ημερομηνίες και ορίστε μια θέση για την απεικόνιση των οροσήμων σε γράφημα, στον πίνακα που ξεκινά από το κελί C3.\nΗ στήλη B είναι κρυφή. Το γράφημα που δημιουργείται από αυτά τα δεδομένα χρησιμοποιεί μια γραμμή κύλισης για την προβολή τμημάτων της λωρίδας χρόνου. Η στήλη Β σάς βοηθά να προσδιορίσετε ποια ορόσημα να απεικονίσετε στο γράφημα κατά την επαύξηση της γραμμής κύλισης. \nΠροειδοποίηση: Η διαγραφή ή η τροποποίηση των περιεχομένων της στήλης B μπορεί να διακόψει την ακεραιότητα των γραφημάτων που είναι ενσωματωμένα σε αυτό το βιβλίο εργασίας.","Αρ.","Θέση","Ημερομηνία","Ορόσημο"]
["Εισαγάγετε τη θέση για να απεικονίσετε σε γράφημα την ημερομηνία και το ορόσημο στο κελί C1. Εισαγάγετε έναν θετικό αριθμό από 1 έως 3 για να απεικονίσετε σε γράφημα το ορόσημο επάνω από τη λωρίδα χρόνου. Εισαγάγετε έναν αρνητικό αριθμό από 1 έως 3 για να απεικονίσετε σε γράφημα το ορόσημο κάτω από τη λωρίδα χρόνου.\nΕισαγάγετε την ημερομηνία και το ορόσημο ή τη δραστηριότητα στις στήλες D και E μέσα στον πίνακα.\nΕπαναλάβετε αυτό το μοτίβο για κάθε νέα γραμμή στον πίνακα στα δεξιά.\nΣτις γραμμές 3 έως 26 παρέχεται δείγμα δεδομένων. Τροποποιήστε ή διαγράψτε το δείγμα περιεχομένου για να δημιουργήσετε τον δικό σας χάρτη.\nΣυνεχίστε στο κελί A27 για την επόμενη οδηγία.",{"$f":"ROW($A1)","v":1},1,{"$f":"TODAY()","v":"2018-06-27"},"Έναρξη"]
[null,{"$f":"ROW($A2)","v":2},-2,{"$f":"D3+10","v":"2018-07-07"},"Ανάλυση προβλήματος\nδραστηριότητα 1"]
[null,3,1,{"$f":"D4+20","v":"2018-07-27"},"Ανάπτυξη επιχειρηματικής υπόθεσης\nδραστηριότητα 1\nδραστηριότητα 2"]
[null,4,-1,{"$f":"D5+30","v":"2018-08-26"},"Ανασκόπηση παρουσίασης"]
[null,5,{"v":-0.5,"d":"-1"},{"$f":"D6+40","v":"2018-10-05"},"Εναρκτήρια σύσκεψη στελεχών\nδραστηριότητα 1\nδραστηριότητα 2"]
[null,6,2,{"$f":"D7+50","v":"2018-11-24"},"Ευθυγράμμιση στελεχών\nδραστηριότητα 1\nδραστηριότητα 2\nδραστηριότητα 3"]
[null,7,{"v":0.5,"d":"1"},{"$f":"D8+60","v":"2019-01-23"},"Προσέλκυση ενδιαφερόμενων"]
[null,8,-1,{"$f":"D9+70","v":"2019-04-03"},"Επιλογή πόρων"]
[null,9,{"v":0.5,"d":"1"},{"$f":"D10+80","v":"2019-06-22"},"Δημιουργία ομάδας\nδραστηριότητα 1 "]
[null,{"$f":"ROW($A10)","v":10},-2,{"$f":"D11+90","v":"2019-09-20"},"Εναρκτήρια σύσκεψη ομάδας\nδραστηριότητα 1 \nδραστηριότητα 2\nδραστηριότητα 3\nδραστηριότητα 4"]
[null,{"$f":"ROW($A11)","v":11},3,{"$f":"D12+100","v":"2019-12-29"},"Έναρξη συλλογής δεδομένων"]
[null,12,-1,{"$f":"D13+90","v":"2020-03-28"},"Ανάλυση δεδομένων"]
[null,13,1,{"$f":"D14+80","v":"2020-06-16"},"Σχεδίαση"]
[null,14,1,{"$f":"D15+70","v":"2020-08-25"},"Επαλήθευση της ιδέας"]
[null,15,-3,{"$f":"D16+60","v":"2020-10-24"},"Δοκιμές και ανάλυση"]
[null,16,-2,{"$f":"D17+50","v":"2020-12-13"},"Επανασχεδίαση"]
[null,17,2,{"$f":"D18+40","v":"2021-01-22"},"Εκ νέου ανάπτυξη"]
[null,18,-1,{"$f":"D19+30","v":"2021-02-21"},"Δοκιμές και ανάλυση"]
[null,19,1,{"$f":"D20+20","v":"2021-03-13"},"Επανασχεδίαση"]
[null,20,-3,{"$f":"D21+10","v":"2021-03-23"},"Εκ νέου ανάπτυξη"]
[null,21,2,{"$f":"D22+20","v":"2021-04-12"},"Τελική δοκιμή"]
[null,22,1,{"$f":"D23+30","v":"2021-05-12"},"Δοκιμή beta"]
[null,23,-3,{"$f":"D24+40","v":"2021-06-21"},"Ανασκόπηση"]
[null,24,-2,{"$f":"D25+50","v":"2021-08-10"},"Αποστολή στο Μάρκετινγκ"]
["Για να προσθέσετε περισσότερες γραμμές στον πίνακα \"Ορόσημα χάρτη\", απλώς εισαγάγετε μια νέα γραμμή επάνω από αυτή.\nΔεν υπάρχουν περαιτέρω οδηγίες σε αυτό το φύλλο εργασίας.",null,"Για να προσθέσετε περισσότερα ορόσημα, εισαγάγετε μια νέα γραμμή επάνω από αυτήν τη γραμμή."]

{"sheet":"Χάρτης","index":1,"n_rows":3,"n_cols":4,"rows_kept":3}
["Ένα γράφημα που εμφανίζει τα ορόσημα από το φύλλο εργασίας \"Ορόσημα\" σε αυτό το φύλλο εργασίας. \nΤα έτη υποδεικνύονται στα κελιά B2, C2 και D2 και έχει εφαρμοστεί σε αυτά το στυλ Επικεφαλίδα 3.\n10 ορόσημα απεικονίζονται κάθε φορά. \nΧρησιμοποιήστε τη γραμμή κύλισης στα κελιά B4 έως D4 για να περιηγηθείτε στον χάρτη.\nΤα έτη της λωρίδας χρόνου βρίσκονται στα κελιά B3 έως D3.\nΔεν υπάρχουν περαιτέρω οδηγίες σε αυτό το φύλλο εργασίας."]
[]
[null,{"$f":"'Δεδομένα γραφήματος'!B20","v":2018},{"$f":"'Δεδομένα γραφήματος'!B21","v":""},{"$f":"'Δεδομένα γραφήματος'!B22","v":2019}]

{"sheet":"Πληροφορίες","index":2,"n_rows":5,"n_cols":1,"rows_kept":5}
["Πληροφορίες για αυτό το βιβλίο εργασίας"]
["Οδηγός για προγράμματα ανάγνωσης οθόνης"]
["Υπάρχουν 4 φύλλα εργασίας σε αυτό το βιβλίο εργασίας. \n\nΟρόσημα\nΧάρτης\nΠληροφορίες\nΔεδομένα γραφήματος (κρυφό)\n\nΟι οδηγίες για κάθε φύλλο εργασίας βρίσκονται στη στήλη A, ξεκινώντας από το κελί A1 κάθε φύλλου εργασίας. Είναι σε κρυφό κείμενο. Κάθε βήμα σάς καθοδηγεί στις πληροφορίες της συγκεκριμένης γραμμής. Κάθε επόμενο βήμα συνεχίζει στο κελί A2, A3 και ούτω καθεξής, εκτός και εάν υπάρχει διαφορετική ρητή οδηγία. Για παράδειγμα, το κείμενο οδηγιών μπορεί να αναφέρει \"συνεχίστε στο κελί A6\" για το επόμενο βήμα. \n\nΤο κρυφό κείμενο δεν εκτυπώνεται.\n\nΓια να καταργήσετε αυτές τις οδηγίες από οποιοδήποτε φύλλο εργασίας, απλώς διαγράψτε τη στήλη A.\n"]
["Αυτός ο χάρτης χρησιμοποιεί θέσεις για να συμπεριλάβει ορόσημα και δραστηριότητες στο γράφημα. Μπορούν να χρησιμοποιηθούν θέσεις για την προσθήκη βαρύτητας σε ένα ορόσημο ή δραστηριότητα. Απλώς προσαρμόστε τις τιμές σύμφωνα με τις προτιμήσεις βαρύτητας. Για παράδειγμα, το ορόσημο/δραστηριότητα 3 μπορεί να έχει μεγαλύτερη βαρύτητα από το ορόσημο/δραστηριότητα 2. Για να το δείξετε αυτό στο γράφημα, απλώς αυξήστε την τιμή \"Θέση\" για το ορόσημο/δραστηριότητα 3 σε σχέση με το ορόσημο/δραστηριότητα 2.  \n"]
["Αυτή είναι η τελευταία οδηγία σε αυτό το φύλλο εργασίας."]

{"sheet":"Δεδομένα γραφήματος","index":3,"n_rows":26,"n_cols":4,"rows_kept":26,"hidden":true}
["Σε αυτό το φύλλο εργασίας υπάρχουν τα δεδομένα για να δημιουργήσετε τα δυναμικά γραφήματα. Μην διαγράψετε αυτό το φύλλο εργασίας!\nΗ διαγραφή αυτού του φύλλου εργασίας μπορεί να θέσει σε κίνδυνο τις δυναμικές δυνατότητες του βιβλίου εργασίας.","Μην διαγράψετε αυτό το φύλλο εργασίας!"]
["Ο τίτλος για τον πίνακα βρίσκεται στο κελί B2.","Περιεχόμενο δυναμικού γραφήματος"]
["Οι επικεφαλίδες του πίνακα είναι στα κελιά B3 έως D3. \nΑυτός ο πίνακας ενημερώνεται αυτόματα με βάση το περιεχόμενο που εισάγεται στο φύλλο εργασίας \"Ορόσημα\".\nΠροειδοποίηση: Η τροποποίηση ή η διαγραφή περιεχομένου σε αυτόν τον πίνακα θα μπορούσε να θέσει σε κίνδυνο τη δυνατότητα δυναμικής ενημέρωσης του γραφήματος χάρτη στο φύλλο εργασίας \"Χάρτης\".\nΣυνεχίστε στο κελί A15 για την επόμενη οδηγία.","Ημερομηνία","Συμβάντα","Θέση"]
[null,{"$f":"IFERROR(IF(LEN(Ορόσημα!D3)=0,\"\",INDEX(ΟρόσημαΧάρτη[],Ορόσημα!$B3+$B$17,3)),\"\")","v":"2018-06-27"},{"$f":"IFERROR(IF(LEN(Ορόσημα!E3)=0,\"\",INDEX(ΟρόσημαΧάρτη[],Ορόσημα!$B3+$B$17,4)),\"\")","v":"Έναρξη"},{"$f":"IFERROR(INDEX(ΟρόσημαΧάρτη[],Ορόσημα!$B3+$B$17,2),\"\")","v":1}]
[null,{"$f":"IFERROR(IF(LEN(Ορόσημα!D4)=0,\"\",INDEX(ΟρόσημαΧάρτη[],Ορόσημα!$B4+$B$17,3)),\"\")","v":"2018-07-07"},{"$f":"IFERROR(IF(LEN(Ορόσημα!E4)=0,\"\",INDEX(ΟρόσημαΧάρτη[],Ορόσημα!$B4+$B$17,4)),\"\")","v":"Ανάλυση προβλήματος\nδραστηριότητα 1"},{"$f":"IFERROR(INDEX(ΟρόσημαΧάρτη[],Ορόσημα!$B4+$B$17,2),\"\")","v":-2}]
[null,{"$f":"IFERROR(IF(LEN(Ορόσημα!D5)=0,\"\",INDEX(ΟρόσημαΧάρτη[],Ορόσημα!$B5+$B$17,3)),\"\")","v":"2018-07-27"},{"$f":"IFERROR(IF(LEN(Ορόσημα!E5)=0,\"\",INDEX(ΟρόσημαΧάρτη[],Ορόσημα!$B5+$B$17,4)),\"\")","v":"Ανάπτυξη επιχειρηματικής υπόθεσης\nδραστηριότητα 1\nδραστηριότητα 2"},{"$f":"IFERROR(INDEX(ΟρόσημαΧάρτη[],Ορόσημα!$B5+$B$17,2),\"\")","v":1}]
[null,{"$f":"IFERROR(IF(LEN(Ορόσημα!D6)=0,\"\",INDEX(ΟρόσημαΧάρτη[],Ορόσημα!$B6+$B$17,3)),\"\")","v":"2018-08-26"},{"$f":"IFERROR(IF(LEN(Ορόσημα!E6)=0,\"\",INDEX(ΟρόσημαΧάρτη[],Ορόσημα!$B6+$B$17,4)),\"\")","v":"Ανασκόπηση παρουσίασης"},{"$f":"IFERROR(INDEX(ΟρόσημαΧάρτη[],Ορόσημα!$B6+$B$17,2),\"\")","v":-1}]
[null,{"$f":"IFERROR(IF(LEN(Ορόσημα!D7)=0,\"\",INDEX(ΟρόσημαΧάρτη[],Ορόσημα!$B7+$B$17,3)),\"\")","v":"2018-10-05"},{"$f":"IFERROR(IF(LEN(Ορόσημα!E7)=0,\"\",INDEX(ΟρόσημαΧάρτη[],Ορόσημα!$B7+$B$17,4)),\"\")","v":"Εναρκτήρια σύσκεψη στελεχών\nδραστηριότητα 1\nδραστηριότητα 2"},{"$f":"IFERROR(INDEX(ΟρόσημαΧάρτη[],Ορόσημα!$B7+$B$17,2),\"\")","v":-0.5}]
[null,{"$f":"IFERROR(IF(LEN(Ορόσημα!D8)=0,\"\",INDEX(ΟρόσημαΧάρτη[],Ορόσημα!$B8+$B$17,3)),\"\")","v":"2018-11-24"},{"$f":"IFERROR(IF(LEN(Ορόσημα!E8)=0,\"\",INDEX(ΟρόσημαΧάρτη[],Ορόσημα!$B8+$B$17,4)),\"\")","v":"Ευθυγράμμιση στελεχών\nδραστηριότητα 1\nδραστηριότητα 2\nδραστηριότητα 3"},{"$f":"IFERROR(INDEX(ΟρόσημαΧάρτη[],Ορόσημα!$B8+$B$17,2),\"\")","v":2}]
[null,{"$f":"IFERROR(IF(LEN(Ορόσημα!D9)=0,\"\",INDEX(ΟρόσημαΧάρτη[],Ορόσημα!$B9+$B$17,3)),\"\")","v":"2019-01-23"},{"$f":"IFERROR(IF(LEN(Ορόσημα!E9)=0,\"\",INDEX(ΟρόσημαΧάρτη[],Ορόσημα!$B9+$B$17,4)),\"\")","v":"Προσέλκυση ενδιαφερόμενων"},{"$f":"IFERROR(INDEX(ΟρόσημαΧάρτη[],Ορόσημα!$B9+$B$17,2),\"\")","v":0.5}]
[null,{"$f":"IFERROR(IF(LEN(Ορόσημα!D10)=0,\"\",INDEX(ΟρόσημαΧάρτη[],Ορόσημα!$B10+$B$17,3)),\"\")","v":"2019-04-03"},{"$f":"IFERROR(IF(LEN(Ορόσημα!E10)=0,\"\",INDEX(ΟρόσημαΧάρτη[],Ορόσημα!$B10+$B$17,4)),\"\")","v":"Επιλογή πόρων"},{"$f":"IFERROR(INDEX(ΟρόσημαΧάρτη[],Ορόσημα!$B10+$B$17,2),\"\")","v":-1}]
[null,{"$f":"IFERROR(IF(LEN(Ορόσημα!D11)=0,\"\",INDEX(ΟρόσημαΧάρτη[],Ορόσημα!$B11+$B$17,3)),\"\")","v":"2019-06-22"},{"$f":"IFERROR(IF(LEN(Ορόσημα!E11)=0,\"\",INDEX(ΟρόσημαΧάρτη[],Ορόσημα!$B11+$B$17,4)),\"\")","v":"Δημιουργία ομάδας\nδραστηριότητα 1 "},{"$f":"IFERROR(INDEX(ΟρόσημαΧάρτη[],Ορόσημα!$B11+$B$17,2),\"\")","v":0.5}]
[null,{"$f":"IFERROR(IF(LEN(Ορόσημα!D12)=0,\"\",INDEX(ΟρόσημαΧάρτη[],Ορόσημα!$B12+$B$17,3)),\"\")","v":"2019-09-20"},{"$f":"IFERROR(IF(LEN(Ορόσημα!E12)=0,\"\",INDEX(ΟρόσημαΧάρτη[],Ορόσημα!$B12+$B$17,4)),\"\")","v":"Εναρκτήρια σύσκεψη ομάδας\nδραστηριότητα 1 \nδραστηριότητα 2\nδραστηριότητα 3\nδραστηριότητα 4"},{"$f":"IFERROR(INDEX(ΟρόσημαΧάρτη[],Ορόσημα!$B12+$B$17,2),\"\")","v":-2}]
[]
["Η δυνατότητα μετακίνησης μέσα στον χάρτη γίνεται με τη βοήθεια μιας τιμής επαύξησης σε αυτόν τον πίνακα. Ο τίτλος για αυτήν τη δυνατότητα βρίσκεται στο κελί B15.\nΈνας πίνακας με μια επικεφαλίδα και μία τιμή βρίσκεται στα κελιά B16 και B17.\nΣυνεχίστε στο κελί A19 για την επόμενη οδηγία.","Δυνατότητα κύλισης"]
[null,"Προσαύξηση γραμμών"]
[null,0]
[]
["Το γράφημα χάρτη σχεδιάζει τα έτη για τη λωρίδα χρόνου. Για να το κάνει αυτό, τα έτη πρέπει να ληφθούν από τη λίστα οροσήμων. \nΟ τίτλος για αυτή την ενότητα είναι \"Έτος\" στο κελί B19. \nΟι τιμές έτους δημιουργούνται αυτόματα στα κελιά C20 έως C22.\nΠροειδοποίηση: Η διαγραφή ή η τροποποίηση αυτών των ετών ενδέχεται να αλλάξει την ακρίβεια γραφήματος του γραφήματος Χάρτης.\nΣυνεχίστε στο κελί A24 για την επόμενη οδηγία.","Έτος"]
[null,{"$f":"IFERROR(YEAR(B4),\"\")","v":2018},"<--έτος για την θέση έναρξης του χάρτη"]
[null,{"$f":"IFERROR(IF(YEAR($B$9)=$B$20,\"\",YEAR($B$9)),\"\")","v":""},"<--έτος για τη μεσαία περίοδο του χάρτη, έχετε υπόψη ότι αυτό μπορεί να είναι κενό εάν πρόκειται για το ίδιο έτος με τη θέση έναρξης του χάρτη"]
[null,{"$f":"IFERROR(IF(YEAR($B$13)=$B$20,\"\",YEAR($B$13)),\"\")","v":2019},"<--έτος για τη τελευταία θέση του χάρτη, έχετε υπόψη ότι αυτό μπορεί να είναι κενό εάν πρόκειται για το ίδιο έτος με τη θέση έναρξης του χάρτη"]
[]
["Οι δείκτες δακτυλίου στο γράφημα χάρτη περιέχουν ημερομηνίες από τα περιεχόμενα του δυναμικού γραφήματος σε αυτό το φύλλο εργασίας. Οι ημερομηνίες είναι η πρώτη ημερομηνία στο κελί C24, η μεσαία ημερομηνία στο κελί C25 και η τελευταία ημερομηνία στο κελί C26.\nΔεν υπάρχουν περαιτέρω οδηγίες σε αυτό το φύλλο εργασίας.","Πρώτη ημερομηνία",{"$f":"B4","v":"2018-06-27"}]
[null,"Μεσαία ημερομηνία",{"$f":"B9","v":"2018-11-24"}]
[null,"Τελευταία ημερομηνία",{"$f":"B13","v":"2019-09-20"}]